[Event "Reykjavik Open 2025"]
[Site "Reykjavik"]
[Date "2025.04.12"]
[Round "5.20"]
[White "Prraneeth Vuppala"]
[Black "Wan, Joseph"]
[Result "1-0"]
[Annotator "ChessBase"]
[ECO "C05"]
[WhiteElo "2433"]
[BlackElo "2242"]
[PlyCount "83"]
[EventDate "2025.04.09"]
[EventType "swiss"]
[EventCountry "ISL"]
[SourceTitle "playchess.com"]
[Source "ChessBase"]
[SourceQuality "1"]
[TimeControl "40/5400+30:1800+30"]

1. e4 {[%emt 0:00:02]} e6 {[%emt 0:01:11]} 2. d4 {[%emt 0:00:23]} d5 {[%emt 0:00:05]} 3. Nc3 {[%emt 0:00:08]} Nf6 {[%emt 0:00:22]} 4. e5 {[%emt 0:01:42]} Nfd7 {[%emt 0:00:05]} 5. f4 {[%emt 0:00:14]} c5 {[%emt 0:00:06]} 6. Nf3 {[%emt 0:00:52]} Nc6 {[%emt 0:00:06]} 7. Ne2 {[%emt 0:02:22]} cxd4 {[%emt 0:03:29]} 8. Nexd4 {[%emt 0:01:22]} Be7 {[%emt 0:00:21]} 9. Nxc6 {[%emt 0:02:29]} bxc6 {[%emt 0:00:23]} 10. Bd3 {[%emt 0:00:42]} Nc5 {[%emt 0:02:11]} 11. O-O {[%emt 0:03:13]} O-O {[%emt 0:03:24]} 12. Be3 {[%emt 0:03:10]} a5 {[%emt 0:07:52]} 13. Bxc5 {[%emt 0:04:05]} Bxc5+ {[%emt 0:00:14]} 14. Kh1 {[%emt 0:00:01]} Be7 {[%emt 0:24:02]} 15. Qe2 {[%emt 0:07:02]} Qb6 {[%emt 0:01:26]} 16. Ng5 {[%emt 0:09:48]} h6 {[%emt 0:06:41]} 17. c4 {[%emt 0:16:19]} Ba6 {[%emt 0:04:23]} 18. Nh7 {[%emt 0:04:32]} dxc4 {[%emt 0:08:37]} 19. Bc2 {[%emt 0:04:21]} Rfd8 {[%emt 0:00:30]} 20. f5 {[%emt 0:01:36]} exf5 {[%emt 0:03:26]} 21. e6 {[%emt 0:10:51]} f6 {[%emt 0:07:49]} 22. Qh5 {[%emt 0:02:54]} Qxb2 {[%emt 0:07:40]} 23. Bxf5 {[%emt 0:12:36]} Rd5 {[%emt 0:01:55]} 24. Rab1 {[%emt 0:05:53]} Qxa2 {[%emt 0:02:26]} 25. Qf7+ {[%emt 0:01:04]} Kh8 {[%emt 0:00:02]} 26. Be4 {[%emt 0:00:20]} Re5 {[%emt 0:07:33]} 27. Qxe7 {[%emt 0:01:48]} Rxe4 {[%emt 0:00:07]} 28. Nxf6 {[%emt 0:00:03]} Re2 {[%emt 0:02:29]} 29. Ne8 {[%emt 0:01:57]} Rxg2 {[%emt 0:00:43]} 30. Rf8+ {[%emt 0:00:37]} Kh7 {[%emt 0:00:03]} 31. Nf6+ {[%emt 0:00:06]} Kg6 {[%emt 0:00:04]} 32. Qf7+ {[%emt 0:00:09]} Kf5 {[%emt 0:01:15]} 33. Qh5+ {[%emt 0:01:29]} Rg5 {[%emt 0:01:09]} 34. Qf3+ {[%emt 0:00:47]} Kxe6 {[%emt 0:01:14]} 35. Re1+ {[%emt 0:01:13]} Kd6 {[%emt 0:00:26]} 36. Rxa8 {[%emt 0:00:51]} Bb7 {[%emt 0:00:41]} 37. Ne4+ {[%emt 0:00:25]} Kc7 {[%emt 0:00:16]} 38. Nxg5 {[%emt 0:00:47]} Bxa8 {[%emt 0:00:08]} 39. Ne6+ {[%emt 0:00:09]} Kb6 {[%emt 0:00:21]} 40. Kg1 {[%emt 0:00:49]} Bb7 {[%emt 0:01:08]} 41. Qe3+ {[%emt 0:30:42]} Ka6 {[%emt 0:31:18]} 42. Nc7# {[%emt 0:00:00]} 1-0

[Event "Reykjavik Open 2025"]
[Site "Reykjavik"]
[Date "2025.04.12"]
[Round "5.21"]
[White "Nissinen, Niilo Man"]
[Black "Niermann, Tristan"]
[Result "1-0"]
[Annotator "ChessBase"]
[ECO "B67"]
[WhiteElo "2268"]
[BlackElo "2427"]
[PlyCount "97"]
[EventDate "2025.04.09"]
[EventType "swiss"]
[EventCountry "ISL"]
[SourceTitle "playchess.com"]
[Source "ChessBase"]
[SourceQuality "1"]
[TimeControl "40/5400+30:1800+30"]

1. e4 {[%emt 0:00:04]} c5 {[%emt 0:00:06]} 2. Nf3 {[%emt 0:00:07]} d6 {[%emt 0:00:04]} 3. d4 {[%emt 0:00:22]} cxd4 {[%emt 0:00:08]} 4. Nxd4 {[%emt 0:00:09]} Nf6 {[%emt 0:00:05]} 5. Nc3 {[%emt 0:00:11]} Nc6 {[%emt 0:00:07]} 6. Bg5 {[%emt 0:00:33]} e6 {[%emt 0:00:09]} 7. Qd2 {[%emt 0:00:20]} a6 {[%emt 0:00:07]} 8. O-O-O {[%emt 0:00:15]} Bd7 {[%emt 0:00:07]} 9. f4 {[%emt 0:00:29]} h6 {[%emt 0:00:11]} 10. Bh4 {[%emt 0:02:54]} b5 {[%emt 0:00:39]} 11. Bxf6 {[%emt 0:15:09]} gxf6 {[%emt 0:01:15]} 12. Kb1 {[%emt 0:00:42]} Qb6 {[%emt 0:00:46]} 13. Nxc6 {[%emt 0:01:21]} Bxc6 {[%emt 0:00:05]} 14. f5 {[%emt 0:02:12]} b4 {[%emt 0:03:26]} 15. Ne2 {[%emt 0:00:28]} e5 {[%emt 0:07:01]} 16. Ng3 {[%emt 0:01:17]} Qc5 {[%emt 0:11:25]} 17. Be2 {[%emt 0:20:12]} a5 {[%emt 0:01:40]} 18. Bf3 {[%emt 0:03:36]} h5 {[%emt 0:01:24]} 19. Nxh5 {[%emt 0:06:11]} Ke7 {[%emt 0:00:14]} 20. Qd3 {[%emt 0:23:59]} a4 {[%emt 0:07:00]} 21. Ng3 {[%emt 0:02:41]} Bh6 {[%emt 0:03:35]} 22. Be2 {[%emt 0:03:33]} Rhc8 {[%emt 0:04:42]} 23. Qc4 {[%emt 0:02:40]} Qb6 {[%emt 0:09:17]} 24. Rxd6 {[%emt 0:09:21]} Kxd6 {[%emt 0:00:59]} 25. Qxf7 {[%emt 0:00:09]} Be8 {[%emt 0:00:39]} 26. Rd1+ {[%emt 0:01:20]} Kc6 {[%emt 0:00:13]} 27. Qxf6+ {[%emt 0:02:31]} Kb7 {[%emt 0:00:12]} 28. Qxe5 {[%emt 0:00:15]} b3 {[%emt 0:04:25]} 29. cxb3 {[%emt 0:00:16]} Rc5 {[%emt 0:05:47]} 30. Qe7+ {[%emt 0:00:51]} Rc7 {[%emt 0:00:28]} 31. Qe6 {[%emt 0:01:16]} Rc6 {[%emt 0:07:27]} 32. Qe7+ {[%emt 0:00:15]} Rc7 {[%emt 0:00:47]} 33. Qe6 {[%emt 0:00:05]} Qxe6 {[%emt 0:01:08]} 34. fxe6 {[%emt 0:00:01]} Rd8 {[%emt 0:01:23]} 35. Rf1 {[%emt 0:01:32]} Rd2 {[%emt 0:00:48]} 36. Bc4 {[%emt 0:00:31]} Bg7 {[%emt 0:01:06]} 37. Nf5 {[%emt 0:00:18]} Be5 {[%emt 0:00:25]} 38. Kc1 {[%emt 0:00:52]} Rxb2 {[%emt 0:01:14]} 39. Nd6+ {[%emt 0:00:20]} Kc6 {[%emt 0:07:48]} 40. Nxe8 {[%emt 0:00:28]} Rc8 {[%emt 0:09:01]} 41. Rf5 {[%emt 0:08:54]} Bc3 {[%emt 0:01:50]} 42. Bb5+ {[%emt 0:04:44]} Kb6 {[%emt 0:01:33]} 43. Nd6 {[%emt 0:01:30]} Bd2+ {[%emt 0:01:43]} 44. Kxb2 {[%emt 0:00:06]} a3+ {[%emt 0:00:17]} 45. Kxa3 {[%emt 0:00:07]} Bc1+ {[%emt 0:00:06]} 46. Ka4 {[%emt 0:00:24]} Ra8+ {[%emt 0:00:05]} 47. Kb4 {[%emt 0:00:10]} Ba3+ {[%emt 0:00:16]} 48. Kc4 {[%emt 0:00:17]} Bxd6 {[%emt 0:00:05]} 49. a4 {[%emt 0:01:38]} 1-0

[Event "Reykjavik Open 2025"]
[Site "Reykjavik"]
[Date "2025.04.12"]
[Round "5.22"]
[White "Priansh Das"]
[Black "Yankelevich, Lev"]
[Result "1/2-1/2"]
[Annotator "ChessBase"]
[ECO "B33"]
[WhiteElo "2262"]
[BlackElo "2413"]
[PlyCount "32"]
[EventDate "2025.04.09"]
[EventType "swiss"]
[EventCountry "ISL"]
[SourceTitle "playchess.com"]
[Source "ChessBase"]
[SourceQuality "1"]
[TimeControl "40/5400+30:1800+30"]

1. e4 {[%emt 0:00:02]} c5 {[%emt 0:06:42]} 2. Nf3 {[%emt 0:00:04]} Nc6 {[%emt 0:00:07]} 3. d4 {[%emt 0:00:03]} cxd4 {[%emt 0:00:04]} 4. Nxd4 {[%emt 0:00:06]} e5 {[%emt 0:00:08]} 5. Nb5 {[%emt 0:00:06]} d6 {[%emt 0:00:15]} 6. N1c3 {[%emt 0:00:22]} a6 {[%emt 0:00:13]} 7. Na3 {[%emt 0:00:06]} Be6 {[%emt 0:00:06]} 8. Nd5 {[%emt 0:07:31]} Nf6 {[%emt 0:00:29]} 9. Bg5 {[%emt 0:00:54]} Bxd5 {[%emt 0:00:38]} 10. Qxd5 {[%emt 0:06:40]} Nxd5 {[%emt 0:01:43]} 11. Bxd8 {[%emt 0:00:05]} Nc3 {[%emt 0:00:09]} 12. bxc3 {[%emt 0:01:09]} Rxd8 {[%emt 0:01:56]} 13. Nc4 {[%emt 0:02:44]} d5 {[%emt 0:01:43]} 14. exd5 {[%emt 0:00:11]} Rxd5 {[%emt 0:00:06]} 15. Rb1 {[%emt 0:02:15]} Rb5 {[%emt 0:11:28]} 16. Rb3 {[%emt 0:16:02]} Rxb3 {[%emt 0:15:49]} 1/2-1/2

[Event "Reykjavik Open 2025"]
[Site "Reykjavik"]
[Date "2025.04.12"]
[Round "5.23"]
[White "Unzicker, Ferdinand"]
[Black "Tahay, Alexis"]
[Result "0-1"]
[Annotator "ChessBase"]
[ECO "E24"]
[WhiteElo "2241"]
[BlackElo "2397"]
[PlyCount "112"]
[EventDate "2025.04.09"]
[EventType "swiss"]
[EventCountry "ISL"]
[SourceTitle "playchess.com"]
[Source "ChessBase"]
[SourceQuality "1"]
[TimeControl "40/5400+30:1800+30"]

1. d4 {[%emt 0:00:01]} Nf6 {[%emt 0:00:05]} 2. c4 {[%emt 0:00:05]} e6 {[%emt 0:00:03]} 3. Nc3 {[%emt 0:00:10]} Bb4 {[%emt 0:00:05]} 4. a3 {[%emt 0:00:15]} Bxc3+ {[%emt 0:00:05]} 5. bxc3 {[%emt 0:00:03]} c5 {[%emt 0:00:24]} 6. f3 {[%emt 0:00:33]} Nc6 {[%emt 0:01:20]} 7. e4 {[%emt 0:00:15]} d6 {[%emt 0:00:17]} 8. Ne2 {[%emt 0:02:39]} b6 {[%emt 0:05:15]} 9. Bg5 {[%emt 0:07:14]} h6 {[%emt 0:03:56]} 10. Bh4 {[%emt 0:00:14]} Bb7 {[%emt 0:00:47]} 11. Nc1 {[%emt 0:10:45]} Qc7 {[%emt 0:06:03]} 12. Nb3 {[%emt 0:03:07]} Ne7 {[%emt 0:09:50]} 13. Be2 {[%emt 0:02:53]} Ng6 {[%emt 0:00:53]} 14. Bg3 {[%emt 0:00:54]} Rd8 {[%emt 0:04:23]} 15. h4 {[%emt 0:09:57]} Nh5 {[%emt 0:01:37]} 16. Bf2 {[%emt 0:01:49]} f5 {[%emt 0:07:24]} 17. d5 {[%emt 0:10:51]} O-O {[%emt 0:01:31]} 18. exf5 {[%emt 0:13:30]} exf5 {[%emt 0:00:37]} 19. Qc2 {[%emt 0:01:18]} Nhf4 {[%emt 0:03:25]} 20. Bf1 {[%emt 0:00:14]} Rde8+ {[%emt 0:05:11]} 21. Kd1 {[%emt 0:02:47]} Qf7 {[%emt 0:03:19]} 22. a4 {[%emt 0:03:07]} Nh5 {[%emt 0:03:05]} 23. Nd2 {[%emt 0:03:49]} Bc8 {[%emt 0:02:04]} 24. Kc1 {[%emt 0:04:26]} Ne5 {[%emt 0:02:04]} 25. Kb2 {[%emt 0:00:30]} f4 {[%emt 0:01:23]} 26. Ne4 {[%emt 0:01:27]} Qg6 {[%emt 0:00:28]} 27. Re1 {[%emt 0:00:39]} Re7 {[%emt 0:09:12]} 28. Rg1 {[%emt 0:03:17]} Rfe8 {[%emt 0:02:01]} 29. Kb3 {[%emt 0:01:18]} Bf5 {[%emt 0:03:45]} 30. Qd2 {[%emt 0:01:19]} Rd8 {[%emt 0:01:25]} 31. Qd1 {[%emt 0:00:32]} Nf6 {[%emt 0:01:25]} 32. Nxf6+ {[%emt 0:02:34]} Qxf6 {[%emt 0:00:06]} 33. g4 {[%emt 0:02:14]} fxg3 {[%emt 0:00:52]} 34. Bxg3 {[%emt 0:00:07]} Rde8 {[%emt 0:01:00]} 35. f4 {[%emt 0:01:08]} Ng4 {[%emt 0:01:15]} 36. Qd2 {[%emt 0:03:06]} Rxe1 {[%emt 0:03:03]} 37. Bxe1 {[%emt 0:00:02]} Qe7 {[%emt 0:00:38]} 38. Bd3 {[%emt 0:00:33]} Qe3 {[%emt 0:06:29]} 39. Bxf5 {[%emt 0:02:39]} Qxg1 {[%emt 0:00:01]} 40. Be6+ {[%emt 0:00:10]} Kh8 {[%emt 0:00:27]} 41. f5 {[%emt 0:31:13]} Nf6 {[%emt 0:34:14]} 42. Qe2 {[%emt 0:04:51]} h5 {[%emt 0:03:07]} 43. Bd2 {[%emt 0:02:02]} Qg4 {[%emt 0:00:21]} 44. Qh2 {[%emt 0:00:00]} Qd1+ {[%emt 0:00:00]} 45. Kb2 {[%emt 0:00:00]} Ng4 {[%emt 0:00:00]} 46. Qg2 {[%emt 0:00:00]} Ne5 {[%emt 0:00:00]} 47. Bg5 {[%emt 0:00:00]} Nxc4+ {[%emt 0:00:00]} 48. Ka2 {[%emt 0:00:00]} Qxa4+ {[%emt 0:00:00]} 49. Kb1 {[%emt 0:00:00]} Qb3+ {[%emt 0:00:00]} 50. Kc1 {[%emt 0:00:00]} Qxc3+ {[%emt 0:00:00]} 51. Kb1 {[%emt 0:00:00]} Qd3+ {[%emt 0:00:00]} 52. Ka1 {[%emt 0:00:00]} Rf8 {[%emt 0:00:00]} 53. f6 {[%emt 0:00:00]} Qd4+ {[%emt 0:00:00]} 54. Ka2 {[%emt 0:00:00]} Rxf6 {[%emt 0:00:00]} 55. Bxf6 {[%emt 0:00:00]} Qxf6 {[%emt 0:00:00]} 56. Qe2 {[%emt 0:00:00]} Qxh4 {[%emt 0:00:00]} 0-1

[Event "Reykjavik Open 2025"]
[Site "Reykjavik"]
[Date "2025.04.12"]
[Round "5.24"]
[White "Vogt, Lothar"]
[Black "Kirk, Ezra"]
[Result "0-1"]
[Annotator "RC"]
[ECO "B22"]
[WhiteElo "2229"]
[BlackElo "2394"]
[PlyCount "132"]
[EventDate "2025.04.09"]
[EventType "swiss"]
[EventCountry "ISL"]
[SourceTitle "playchess.com"]
[Source "ChessBase"]
[SourceQuality "1"]
[TimeControl "40/5400+30:1800+30"]

1. e4 {[%emt 0:00:04]} c5 {[%emt 0:01:14]} 2. c3 {[%emt 0:01:13]} Nf6 {[%emt 0:00:18]} 3. e5 {[%emt 0:00:03]} Nd5 {[%emt 0:00:07]} 4. Nf3 {[%emt 0:00:06]} d6 {[%emt 0:00:52]} 5. exd6 {[%emt 0:04:41]} e6 {[%emt 0:00:17]} 6. d4 {[%emt 0:00:08]} cxd4 {[%emt 0:02:10]} 7. cxd4 {[%emt 0:02:19]} Bxd6 {[%emt 0:01:18]} 8. Nc3 {[%emt 0:00:23]} O-O {[%emt 0:04:00]} 9. Bd3 {[%emt 0:00:08]} Nxc3 {[%emt 0:13:33]} 10. bxc3 {[%emt 0:00:03]} Nd7 {[%emt 0:00:28]} 11. O-O {[%emt 0:00:55]} b6 {[%emt 0:00:33]} 12. c4 {[%emt 0:05:18]} Bb7 {[%emt 0:01:15]} 13. Bb2 {[%emt 0:00:08]} Qf6 {[%emt 0:08:37]} 14. Re1 {[%emt 0:11:06]} Bxf3 {[%emt 0:01:54]} 15. Qxf3 {[%emt 0:00:05]} Qxf3 {[%emt 0:00:08]} 16. gxf3 {[%emt 0:00:13]} Rac8 {[%emt 0:01:06]} 17. a4 {[%emt 0:03:05]} Bb4 {[%emt 0:08:13]} 18. Red1 {[%emt 0:01:13]} Rfd8 {[%emt 0:03:42]} 19. Kf1 {[%emt 0:02:54]} a5 {[%emt 0:07:21]} 20. Ke2 {[%emt 0:01:57]} Be7 {[%emt 0:00:16]} 21. Rab1 {[%emt 0:04:31]} Bf6 {[%emt 0:02:54]} 22. f4 {[%emt 0:04:07]} g6 {[%emt 0:03:57]} 23. Ke3 {[%emt 0:00:52]} Nb8 {[%emt 0:07:30]} 24. Be2 {[%emt 0:06:51]} Nc6 {[%emt 0:05:18]} 25. d5 {[%emt 0:02:54]} Bxb2 {[%emt 0:01:13]} 26. dxc6 {[%emt 0:00:15]} Ba3 {[%emt 0:02:48]} 27. Bf3 {[%emt 0:01:48]} Kf8 {[%emt 0:04:32]} 28. Rd7 {[%emt 0:02:36]} Rxd7 {[%emt 0:02:56]} 29. cxd7 {[%emt 0:00:03]} Rd8 {[%emt 0:00:39]} 30. Bc6 {[%emt 0:00:14]} Ke7 {[%emt 0:00:44]} 31. f3 {[%emt 0:01:59]} Bc5+ {[%emt 0:02:24]} 32. Ke4 {[%emt 0:01:24]} h5 {[%emt 0:04:08]} 33. h3 {[%emt 0:00:25]} h4 {[%emt 0:00:47]} 34. Rb2 {[%emt 0:01:36]} Rh8 {[%emt 0:00:37]} 35. Rg2 {[%emt 0:00:55]} Kd6 {[%emt 0:01:53]} 36. Bb5 {[%emt 0:00:09]} Kc7 {[%emt 0:00:05]} 37. Rd2 {[%emt 0:03:53]} Kd8 {[%emt 0:00:17]} 38. Rg2 {[%emt 0:01:32]} Be7 {[%emt 0:01:22]} 39. Rd2 {[%emt 0:04:23]} Rh5 {[%emt 0:01:12]} 40. Rd4 {[%emt 0:14:17]} Bc5 {[%emt 0:03:31]} 41. Rd2 {[%emt 0:30:36]} Rf5 {[%emt 0:33:04]} 42. Bc6 {[%emt 0:02:34]} Bf8 {[%emt 0:00:00]} 43. Rb2 {[%emt 0:00:00]} Bb4 {[%emt 0:00:00]} 44. Rb1 {[%emt 0:00:00]} Bc5 {[%emt 0:00:00]} 45. Rd1 {[%emt 0:00:00]} g5 {[%emt 0:00:00]} 46. fxg5 {[%emt 0:00:00]} Rxg5 {[%emt 0:00:00]} 47. Rd2 {[%emt 0:00:00]} Be7 {[%emt 0:00:00]} 48. Bb5 {[%emt 0:00:00]} Rg3 {[%emt 0:00:00]} 49. Rh2 {[%emt 0:00:00]} Bd6 {[%emt 0:00:00]} 50. Rh1 {[%emt 0:00:00]} f5+ {[%emt 0:00:00]} 51. Ke3 {[%emt 0:00:00]} e5 {[%emt 0:00:00]} 52. Ke2 {[%emt 0:00:08]} Bc5 {[%emt 0:00:00]} 53. Bc6 {[%emt 0:01:53]} Rg6 {[%emt 0:00:00]} 54. Bb5 {[%emt 0:00:29]} Rg2+ {[%emt 0:00:00]} 55. Kd1 {[%emt 0:00:47]} Be3 {[%emt 0:00:38]} 56. Ke1 {[%emt 0:03:03]} Rc2 {[%emt 0:01:20]} 57. Rf1 {[%emt 0:03:07]} Rh2 {[%emt 0:00:12]} 58. c5 {[%emt 0:00:20]} bxc5 {[%emt 0:01:41]} 59. Bd3 {[%emt 0:00:03]} Kxd7 {[%emt 0:01:09]} 60. Bxf5+ {[%emt 0:00:02]} Kd6 {[%emt 0:00:18]} 61. Kd1 {[%emt 0:00:57]} Rd2+ {[%emt 0:02:04]} 62. Ke1 {[%emt 0:00:01]} Ra2 {[%emt 0:00:40]} 63. Kd1 {[%emt 0:00:27]} Rxa4 {[%emt 0:01:29]} 64. Ke2 {[%emt 0:00:02]} Bd4 {[%emt 0:00:18]} 65. Rb1 {[%emt 0:00:11]} Rb4 {[%emt 0:00:51]} 66. Rxb4 {[%emt 0:00:13]} cxb4 {[%emt 0:00:36]} 0-1

[Event "Reykjavik Open 2025"]
[Site "Reykjavik"]
[Date "2025.04.12"]
[Round "5.25"]
[White "Terrieux, Kevin"]
[Black "Lohr, Matthias"]
[Result "1-0"]
[Annotator "ChessBase"]
[ECO "B31"]
[WhiteElo "2394"]
[BlackElo "2092"]
[PlyCount "42"]
[EventDate "2025.04.09"]
[EventType "swiss"]
[EventCountry "ISL"]
[SourceTitle "playchess.com"]
[Source "ChessBase"]
[SourceQuality "1"]
[TimeControl "40/5400+30:1800+30"]

1. e4 {[%emt 0:00:06]} c5 {[%emt 0:05:51]} 2. Nf3 {[%emt 0:01:02]} Nc6 {[%emt 0:04:27]} 3. Bb5 {[%emt 0:01:00]} g6 {[%emt 0:00:52]} 4. O-O {[%emt 0:01:03]} Bg7 {[%emt 0:00:05]} 5. c3 {[%emt 0:00:35]} a6 {[%emt 0:02:37]} 6. Bxc6 {[%emt 0:02:27]} bxc6 {[%emt 0:02:23]} 7. Re1 {[%emt 0:07:15]} e5 {[%emt 0:11:51]} 8. d4 {[%emt 0:00:45]} cxd4 {[%emt 0:01:43]} 9. cxd4 {[%emt 0:00:10]} d6 {[%emt 0:03:19]} 10. dxe5 {[%emt 0:09:40]} dxe5 {[%emt 0:00:08]} 11. Qc2 {[%emt 0:00:14]} Ne7 {[%emt 0:04:10]} 12. b3 {[%emt 0:00:25]} O-O {[%emt 0:09:08]} 13. Ba3 {[%emt 0:00:50]} Bg4 {[%emt 0:01:57]} 14. Nbd2 {[%emt 0:02:52]} Rc8 {[%emt 0:03:06]} 15. h3 {[%emt 0:00:34]} Bxf3 {[%emt 0:03:02]} 16. Nxf3 {[%emt 0:00:06]} Re8 {[%emt 0:00:45]} 17. Red1 {[%emt 0:02:52]} Qa5 {[%emt 0:02:17]} 18. Bd6 {[%emt 0:00:28]} c5 {[%emt 0:11:10]} 19. Bxe5 {[%emt 0:11:13]} Bh6 {[%emt 0:05:39]} 20. Bc3 {[%emt 0:01:46]} Qc7 {[%emt 0:01:53]} 21. Ne5 {[%emt 0:00:38]} Bf8 {[%emt 0:05:51]} 1-0

[Event "Reykjavik Open 2025"]
[Site "Reykjavik"]
[Date "2025.04.12"]
[Round "5.26"]
[White "Borne, Felix"]
[Black "Willems, Niels"]
[Result "0-1"]
[Annotator "ChessBase"]
[ECO "D02"]
[WhiteElo "2225"]
[BlackElo "2394"]
[PlyCount "68"]
[EventDate "2025.04.09"]
[EventType "swiss"]
[EventCountry "ISL"]
[SourceTitle "playchess.com"]
[Source "ChessBase"]
[SourceQuality "1"]
[TimeControl "40/5400+30:1800+30"]

1. Nf3 {[%emt 0:00:03]} Nf6 {[%emt 0:00:20]} 2. g3 {[%emt 0:00:18]} c5 {[%emt 0:00:14]} 3. Bg2 {[%emt 0:00:08]} Nc6 {[%emt 0:00:09]} 4. d4 {[%emt 0:00:11]} cxd4 {[%emt 0:00:26]} 5. Nxd4 {[%emt 0:00:05]} e5 {[%emt 0:05:03]} 6. Nb3 {[%emt 0:00:18]} d5 {[%emt 0:01:46]} 7. O-O {[%emt 0:03:03]} Be7 {[%emt 0:01:28]} 8. Bg5 {[%emt 0:00:39]} Be6 {[%emt 0:01:54]} 9. Bxf6 {[%emt 0:00:28]} Bxf6 {[%emt 0:11:14]} 10. c4 {[%emt 0:00:48]} d4 {[%emt 0:05:45]} 11. Nc5 {[%emt 0:13:01]} Bc8 {[%emt 0:01:44]} 12. b4 {[%emt 0:12:00]} O-O {[%emt 0:05:54]} 13. a3 {[%emt 0:11:29]} Qc7 {[%emt 0:05:03]} 14. Nd2 {[%emt 0:00:54]} Be7 {[%emt 0:01:38]} 15. Nd3 {[%emt 0:07:02]} f5 {[%emt 0:18:36]} 16. Bd5+ {[%emt 0:15:08]} Kh8 {[%emt 0:00:02]} 17. e3 {[%emt 0:02:00]} dxe3 {[%emt 0:01:24]} 18. fxe3 {[%emt 0:00:08]} Bg5 {[%emt 0:02:44]} 19. Qe2 {[%emt 0:02:22]} Bd7 {[%emt 0:02:09]} 20. Rae1 {[%emt 0:07:43]} Ne7 {[%emt 0:02:54]} 21. Nf3 {[%emt 0:02:56]} Bf6 {[%emt 0:00:42]} 22. e4 {[%emt 0:00:43]} Nxd5 {[%emt 0:05:19]} 23. cxd5 {[%emt 0:00:07]} Bb5 {[%emt 0:00:37]} 24. Rc1 {[%emt 0:02:10]} Qb6+ {[%emt 0:00:05]} 25. Kg2 {[%emt 0:00:29]} Rac8 {[%emt 0:02:19]} 26. Rfd1 {[%emt 0:05:57]} Qa6 {[%emt 0:00:29]} 27. Rxc8 {[%emt 0:01:07]} Rxc8 {[%emt 0:00:02]} 28. exf5 {[%emt 0:00:33]} Qxa3 {[%emt 0:05:58]} 29. Rd2 {[%emt 0:03:50]} Qc3 {[%emt 0:02:02]} 30. d6 {[%emt 0:06:59]} Rd8 {[%emt 0:05:55]} 31. Kh3 {[%emt 0:02:05]} Rxd6 {[%emt 0:01:10]} 32. Nfe1 {[%emt 0:01:13]} e4 {[%emt 0:00:56]} 33. Qxe4 {[%emt 0:00:32]} Qxd2 {[%emt 0:00:14]} 34. Qxb7 {[%emt 0:00:08]} Qh6+ {[%emt 0:00:13]} 0-1

[Event "Reykjavik Open 2025"]
[Site "Reykjavik"]
[Date "2025.04.12"]
[Round "5.27"]
[White "James, Chris"]
[Black "Gislason, Gudmundur"]
[Result "0-1"]
[Annotator "ChessBase"]
[ECO "C00"]
[WhiteElo "1895"]
[BlackElo "2216"]
[PlyCount "80"]
[EventDate "2025.04.09"]
[EventType "swiss"]
[EventCountry "ISL"]
[SourceTitle "playchess.com"]
[Source "ChessBase"]
[SourceQuality "1"]
[TimeControl "40/5400+30:1800+30"]

1. e4 {[%emt 0:00:30]} c5 {[%emt 0:00:24]} 2. Nf3 {[%emt 0:00:09]} e6 {[%emt 0:00:07]} 3. d3 {[%emt 0:00:26]} Nc6 {[%emt 0:04:07]} 4. g3 {[%emt 0:00:24]} Nf6 {[%emt 0:04:32]} 5. Bg2 {[%emt 0:00:24]} d5 {[%emt 0:00:23]} 6. Nbd2 {[%emt 0:00:59]} Be7 {[%emt 0:00:09]} 7. O-O {[%emt 0:00:35]} O-O {[%emt 0:00:24]} 8. Re1 {[%emt 0:00:37]} b5 {[%emt 0:02:14]} 9. e5 {[%emt 0:01:49]} Nd7 {[%emt 0:00:07]} 10. Nf1 {[%emt 0:00:21]} Qc7 {[%emt 0:02:07]} 11. Bf4 {[%emt 0:00:32]} Bb7 {[%emt 0:04:28]} 12. h4 {[%emt 0:03:06]} d4 {[%emt 0:03:22]} 13. h5 {[%emt 0:04:07]} Nb6 {[%emt 0:04:27]} 14. h6 {[%emt 0:06:32]} g6 {[%emt 0:00:06]} 15. N1h2 {[%emt 0:03:28]} Nd5 {[%emt 0:00:45]} 16. Bg5 {[%emt 0:02:22]} Rfe8 {[%emt 0:20:05]} 17. Ng4 {[%emt 0:04:55]} Qd8 {[%emt 0:12:58]} 18. Qd2 {[%emt 0:06:19]} f5 {[%emt 0:08:38]} 19. exf6 {[%emt 0:00:46]} Nxf6 {[%emt 0:00:18]} 20. Nfe5 {[%emt 0:20:47]} Nxe5 {[%emt 0:01:18]} 21. Nxe5 {[%emt 0:00:50]} Bxg2 {[%emt 0:03:11]} 22. Kxg2 {[%emt 0:00:12]} Qd5+ {[%emt 0:00:38]} 23. Kg1 {[%emt 0:03:59]} Nd7 {[%emt 0:06:30]} 24. Nxd7 {[%emt 0:06:06]} Bxg5 {[%emt 0:00:15]} 25. f4 {[%emt 0:00:16]} Qxd7 {[%emt 0:00:14]} 26. fxg5 {[%emt 0:00:13]} e5 {[%emt 0:01:22]} 27. Re4 {[%emt 0:02:17]} Re7 {[%emt 0:01:51]} 28. Rf1 {[%emt 0:06:06]} Rae8 {[%emt 0:02:27]} 29. Kg2 {[%emt 0:11:34]} Rf7 {[%emt 0:04:16]} 30. Qe2 {[%emt 0:03:26]} Rxf1 {[%emt 0:02:48]} 31. Qxf1 {[%emt 0:00:37]} Qf5 {[%emt 0:02:35]} 32. Re2 {[%emt 0:03:27]} Qxg5 {[%emt 0:03:55]} 33. Qf3 {[%emt 0:00:14]} e4 {[%emt 0:01:18]} 34. dxe4 {[%emt 0:01:46]} Rf8 {[%emt 0:00:40]} 35. Qb3+ {[%emt 0:01:22]} c4 {[%emt 0:00:10]} 36. Qa3 {[%emt 0:00:36]} Qf6 {[%emt 0:00:28]} 37. Kh2 {[%emt 0:01:23]} Qg5 {[%emt 0:03:16]} 38. Rg2 {[%emt 0:01:59]} Rf1 {[%emt 0:00:23]} 39. g4 {[%emt 0:01:46]} Qxh6+ {[%emt 0:00:19]} 40. Kg3 {[%emt 0:00:08]} Qf4+ {[%emt 0:00:08]} 0-1